Cogmind - Beta 13 @@@ ROGUE MODE // 2024.07.21 @ 19:17:13 Player: Some Kitty Cat Result: Destroyed by 3B-13M(R) with Subdweller Laser Performance ------------- Evolutions (0) 0 Regions Visited (3) 600 Robots Destroyed (21) 105 Value Destroyed (466) 466 Prototype IDs (0) 0 Alien Tech Used (0) 0 Bonus (0) 0 TOTAL SCORE: 1171 Bonus ------- None Cogmind --------- Core Integrity 0/250 Matter 199/300 Energy 125/125 System Corruption 0% Temperature Cool (6) Movement Walking (190) Ox1 Location -10/Subcaves Parts ------- > --- POWER (1) -------- Light Ion Engine > --- PROPULSION (2) --- Aluminum Leg Aluminum Leg > --- UTILITY (2) ------ Large Storage Unit Seismic Detector > --- WEAPON (2) ------- Assault Rifle Light Cannon > --- INVENTORY (15) --- Subdweller Monowheel Medium Storage Unit Large Storage Unit Sensor Array Scrap Shield Light Assault Rifle Grenade Launcher Grenade Launcher Peak State ------------ > --- POWER ------------ Ion Engine > --- PROPULSION ------- Compact Wheel Compact Wheel > --- UTILITY ---------- Large Storage Unit Improved Terrain Scanner > --- WEAPON ----------- Light Assault Rifle Light Assault Rifle > --- INVENTORY -------- Light Ion Engine Small Storage Unit Medium Storage Unit Large Storage Unit Sensor Array Assault Rifle Light Assault Rifle Light Cannon Grenade Launcher Grenade Launcher [Rating: 10] Favorites ----------- Power Ion Engine Engine Ion Engine Propulsion Compact Wheel Leg Aluminum Leg Wheel Compact Wheel Flight Unit Flight Unit Utility Improved Terrain Scanner Device Improved Terrain Scanner Storage Large Storage Unit Protection Light Armor Plating Weapon Light Assault Rifle Ballistic Gun Light Assault Rifle Ballistic Cannon Light Cannon Build | -11 -10 -10 -10 ------- Run | Yrd Mat Min Sub Slots Evolved . | . . . . Power . | . . . . Propulsion . | . . . . Utility . | . . . . Weapon . | . . . . Parts Attached 32 | 7 17 8 . Power 7 | 2 3 2 . Engine 7 | 2 3 2 . Core . | . . . . Reactor . | . . . . Propulsion 14 | 2 9 3 . Treads . | . . . . Leg 6 | 2 2 2 . Wheel 4 | . 3 1 . Hover . | . . . . Flight 4 | . 4 . . Utility 7 | 1 5 1 . Device 2 | 1 . 1 . Storage 4 | . 4 . . Processor . | . . . . Hackware . | . . . . Protection 1 | . 1 . . Artifact . | . . . . Weapon 4 | 2 . 2 . Energy Gun . | . . . . Energy Cannon . | . . . . Ballistic Gun 3 | 2 . 1 . Ballistic Cannon 1 | . . 1 . Launcher . | . . . . Special Weapon . | . . . . Impact Weapon . | . . . . Slashing Weapon . | . . . . Piercing Weapon . | . . . . Special Melee Weapon . | . . . . Unidentified Prototypes . | . . . . Parts Lost 3 | . 1 2 . Power 1 | . 1 . . Propulsion 1 | . . 1 . Utility 1 | . . 1 . Weapon . | . . . . Highest Loss Streak 1 | . 1 1 . To Critical Strikes . | . . . . Average Slot Usage (%) 98 | . 98 98 100 Engine 13 | . 13 14 14 Leg 9 | . 8 6 28 Wheel 17 | . 16 21 . Flight 1 | . 2 . . Device 13 | . 14 12 14 Storage 12 | . 11 14 14 Ballistic Gun 22 | . 28 14 14 Ballistic Cannon 5 | . . 13 14 Naked Turns . | . . . . Heaviest Build 31 | 8 28 31 29 Greatest Support 32 | 20 32 32 20 Greatest Overweight (x) 2 | . 2 1 1 Average Overweight (x) . | . . . 1 Largest Inventory Capacity 15 | 5 15 15 15 Average Capacity 9 | 5 6 15 15 Most Carried 11 | 4 10 11 9 Average Carried 5 | 1 4 7 8 Final Capacity 15 | 5 15 15 15 Final Carried 10 | 2 10 6 9 Class Distribution -------------------- 88% | Mutant 11% | Scavenger-Mutant Dominant Class ---------------- Mutant | -10/Materials Mutant | -10/Mines Scavenger-Mutant | -10/Subcaves Resources | -11 -10 -10 -10 ----------- Run | Yrd Mat Min Sub Matter Collected 700 | 288 232 180 . Remotely . | . . . . Salvage Created 636 | 77 342 217 . Parts 41 | 5 23 13 . Haulers Intercepted . | . . . . Recyclers Shooed 1 | . 1 . . Parts Field Recycled . | . . . . Retrieved Matter . | . . . . Parts Self-Destructed . | . . . . Prevented . | . . . . Kills | -11 -10 -10 -10 ------- Run | Yrd Mat Min Sub Combat Hostiles Destroyed 16 | 1 8 7 . Guns 10 | 1 8 1 . Cannons 6 | . . 6 . Classes Destroyed 5 | 2 3 . . Worker 1 | . 1 . . Tunneler 2 | 1 . 1 . Recycler 2 | . 1 1 . Swarmer 6 | . 3 3 . Grunt 10 | 1 5 4 . Best Kill Streak 4 | 2 3 4 . Combat Bots Only 2 | 1 2 2 . Max Kills in Single Turn 2 | 1 2 1 . Gunslinging . | . . . . Exploded . | . . . . Melee . | . . . . Uniques/NPCs Destroyed . | . . . . Combat | -11 -10 -10 -10 -------- Run | Yrd Mat Min Sub Hostile Shots Fired 113 | 12 43 56 2 Missed 35 | 4 15 15 1 Damage Taken 861 | 89 296 458 18 Core 266 | 32 101 115 18 Absorbed by Shields . | . . . . Core Remaining (%) 87 | 87 . . . Volleys Fired 79 | 9 35 35 . Largest 2 | 2 2 2 . Hottest 55 | 40 40 55 . Shots Fired 158 | 18 70 70 . Gun 128 | 18 70 40 . Cannon 30 | . . 30 . Launcher . | . . . . Special . | . . . . Kinetic 158 | 18 70 70 . Thermal . | . . . . Explosive . | . . . . Electromagnetic . | . . . . Robot Hit Streak 9 | 4 7 9 . Robot Miss Streak 7 | 3 7 3 . Penetration Max . | . . . . Secondary Targets 2 | . 2 . . Max Gunslinging Chain 1 | . 1 . . Shots Hit Robots 90 | 10 38 42 . Core Hits 41 | 3 24 14 . Critical Kills . | . . . . Critical Parts Destroyed 1 | 1 . . . Critical Strikes 1 | 1 . . . Destroy 1 | 1 . . . Melee Attacks . | . . . . Impact . | . . . . Slashing . | . . . . Piercing . | . . . . Sneak Attacks . | . . . . Combat Hostiles . | . . . . Follow-up Attacks . | . . . . Damage Inflicted 1033 | 85 321 627 . Guns 629 | 85 318 226 . Cannons 401 | . . 401 . Explosions . | . . . . Melee . | . . . . Ramming 3 | . 3 . . Kinetic 1030 | 85 318 627 . Thermal . | . . . . Explosive . | . . . . Electromagnetic . | . . . . Impact . | . . . . Slashing . | . . . . Piercing . | . . . . Highest Corruption . | . . . . Average Corruption . | . . . . Corruption Purged . | . . . . Corruption Blocked . | . . . . Overload Shots . | . . . . Overflow Damage . | . . . . Projectiles . | . . . . Explosions . | . . . . Melee . | . . . . Knockbacks 4 | . . 4 . Impact . | . . . . Kinetic 4 | . . 4 . Secondary . | . . . . Self-Inflicted Damage 1 | . 1 . . Shots . | . . . . Rammed 1 | . 1 . . Targets Rammed 1 | . 1 . . Kicked . | . . . . Crushed . | . . . . Highest Temperature 49 | 12 21 49 . Average Temperature 17 | 8 7 24 . Received Heat Transfer 393 | 48 123 216 6 Siege Activations . | . . . . Robots Corrupted . | . . . . Combat Hostiles . | . . . . Parts Fried . | . . . . Impact Corruptions . | . . . . Robots Melted . | . . . . Combat Hostiles . | . . . . Parts Melted . | . . . . Heat Transferred . | . . . . Parts Sabotaged . | . . . . Parts Stolen . | . . . . Parts Stripped . | . . . . Power Chain Reactions . | . . . . Alert | -11 -10 -10 -10 ------- Run | Yrd Mat Min Sub Peak Influence 170 | 25 151 170 . Initial 16 | . 16 7 . Average 58 | 9 62 62 . Maximum Alert Level . | . . . . Low Security (%) 100 | 100 100 100 . Level 1 . | . . . . Level 2 . | . . . . Level 3 . | . . . . Level 4 . | . . . . Level 5 . | . . . . High Security . | . . . . Max Security . | . . . . Squads Dispatched 2 | . 2 . . Investigation 1 | . 1 . . Extermination . | . . . . Reinforcement 1 | . 1 . . Assault . | . . . . Garrison . | . . . . Intercept . | . . . . Searches Triggered . | . . . . Construction Impeded . | . . . . Haulers Reinforced . | . . . . Active Scanning Responses . | . . . . Cargo Convoy Interrupts . | . . . . Stealth | -11 -10 -10 -10 --------- Run | Yrd Mat Min Sub Distress Signals 1 | . 1 . . Communications Jammed . | . . . . Distress Signals . | . . . . Times Spotted 40 | 1 27 10 2 Peak Tracking Total 4 | 1 4 3 1 Tactical Retreats 4 | . 2 2 . Traps | -11 -10 -10 -10 ------- Run | Yrd Mat Min Sub Traps Triggered 1 | . 1 . . Indirectly . | . . . . Trap Hack Attempts . | . . . . Triggered . | . . . . Disarmed . | . . . . Reprogrammed . | . . . . Reused . | . . . . Traps Extracted . | . . . . Installed . | . . . . Triggered . | . . . . Machines | -11 -10 -10 -10 ---------- Run | Yrd Mat Min Sub Machines Disabled . | . . . . Max in Single Turn . | . . . . Machines Repaired . | . . . . Machines Dismantled . | . . . . Machines Sabotaged . | . . . . Overloaded Fab Kills . | . . . . Hacking | -11 -10 -10 -10 --------- Run | Yrd Mat Min Sub Machines Accessed 4 | . 4 . . Terminals 1 | . 1 . . Fabricators . | . . . . Repair Stations 1 | . 1 . . Recycling Units 2 | . 2 . . Scanalyzers . | . . . . Garrison Access . | . . . . Total Hacks 8 | . 8 . . Successful 8 | . 8 . . Failed . | . . . . Catastrophic . | . . . . Database Lockouts . | . . . . Manual . | . . . . Terminals 1 | . 1 . . Fabricators . | . . . . Repair Stations 1 | . 1 . . Recycling Units 6 | . 6 . . Scanalyzers . | . . . . Garrison Access . | . . . . Terminal Hacks 1 | . 1 . . Record 1 | . 1 . . Fabricator Hacks . | . . . . Repair Station Hacks 1 | . 1 . . Scan Component 1 | . 1 . . Recycling Unit Hacks 6 | . 6 . . Recycle Component 4 | . 4 . . Process 2 | . 2 . . Scanalyzer . | . . . . Garrison Access Hacks . | . . . . Unauthorized Hacks . | . . . . Terminals . | . . . . Fabricators . | . . . . Repair Stations . | . . . . Recycling Units . | . . . . Scanalyzers . | . . . . Garrison Access . | . . . . Data Cores Recovered . | . . . . Used . | . . . . Hacking Detections 2 | . 2 . . Full Trace Events . | . . . . Feedback Events . | . . . . Feedback Blocked . | . . . . Robot Schematics Acquired . | . . . . Robots Built . | . . . . Authchips . | . . . . Time . | . . . . Total Robot Build Rating . | . . . . Part Schematics Acquired . | . . . . Parts Built . | . . . . Authchips . | . . . . Time . | . . . . Total Part Build Rating . | . . . . Parts Repaired . | . . . . Time . | . . . . Parts Recycled 4 | . 4 . . Recycled Matter 332 | . 332 . . Retrieved Matter . | . . . . Retrieved Components . | . . . . Parts Scanalyzed . | . . . . Part Schematics Acquired . | . . . . Parts Damaged . | . . . . Bothacking | -11 -10 -10 -10 ------------ Run | Yrd Mat Min Sub Used RIF Installer . | . . . . Robots Hacked . | . . . . Non-combat . | . . . . Combat . | . . . . Robot Hacks Applied . | . . . . Relay Couplers Released . | . . . . Fabnet Peak Effective % . | . . . . Robots Rewired . | . . . . Allies Hacked . | . . . . Hacks Repelled . | . . . . Allies | -11 -10 -10 -10 -------- Run | Yrd Mat Min Sub Total Allies . | . . . . Largest Group . | . . . . Highest-Rated Group . | . . . . Highest-Rated Ally . | . . . . Total Orders . | . . . . Ally Attacks . | . . . . Total Damage . | . . . . Kills . | . . . . Allies Corrupted . | . . . . Allies Melted . | . . . . Intel | -11 -10 -10 -10 ------- Run | Yrd Mat Min Sub Robot Analysis Total . | . . . . Derelict Logs Recovered 3 | . . 2 1 Drone Launches . | . . . . Drone Recoveries . | . . . . Exploration | -11 -10 -10 -10 ------------- Run | Yrd Mat Min Sub Turns Passed 2980 | 175 1724 914 167 Spaces Moved 2324 | 124 1421 692 87 Core 27 | 27 . . . Treads . | . . . . Legs 643 | 97 364 95 87 Wheels 1510 | . 913 597 . Hover . | . . . . Flight 144 | . 144 . . Fastest Speed 50 | 50 100 100 190 Average Speed 113 | 104 109 112 190 Slowest Speed 210 | 120 210 190 190 Overloaded Moves . | . . . . Propulsion Burnouts . | . . . . Robots Hopped . | . . . . Cave-ins Triggered . | . . . . Exploration Rate (%) 47 | 7 73 98 11 Regions Visited 3 Branch Regions 2 Pre-discovered Areas 1 | . . 1 . Known Exits Taken . | . . . . Unknown Exits Taken 3 | 1 1 1 . Scrap Searched . | . . . . Spaces Dug . | . . . . Terrain Destroyed . | . . . . Melee . | . . . . Projectile . | . . . . AOE . | . . . . Terrain Rammed . | . . . . Walls Destroyed . | . . . . Machines Disabled . | . . . . Actions | -11 -10 -10 -10 --------- Run | Yrd Mat Min Sub Total 2548 | 154 1540 765 89 Wait 25 | 5 4 16 . Move 2321 | 123 1420 691 87 Hop . | . . . . Pick Up 53 | 9 38 4 2 Fast Attach . | . . . . Attach 29 | 6 16 7 . Detach 9 | . 4 5 . Swap 3 | 1 1 1 . Drop 28 | 1 21 6 . Fire 79 | 9 35 35 . Melee . | . . . . Ram 1 | . 1 . . Kick . | . . . . Crush . | . . . . Escape Stasis . | . . . . Rewire . | . . . . Trap . | . . . . Miscellaneous . | . . . . Route ------- -11/Scrapyard -10/Materials (discovered 3 exits: [*Mat x2] / [*Min]) -10/Mines (discovered 2 exits: [*Mat] / [*Sub]) -10/Subcaves (discovered 1 exit: [*Mat]) History --------- Turn | Location | Event 2 | -11/Scrapyard | Met Revision 17 87 | -11/Scrapyard | Discovered new exit (range 8) 176 | -11/Scrapyard | Entered Materials 308 | -10/Materials | Build established: Mutant 511 | -10/Materials | Discovered new exit (range 13) 1004 | -10/Materials | Discovered new exit (range 7) 1269 | -10/Materials | Discovered new exit (range 15) 1624 | -10/Materials | Core integrity fell below 50% 1900 | -10/Materials | Entered Mines 2341 | -10/Mines | Learned location of Storage (-7) 2443 | -10/Mines | Core integrity fell below 20% 2498 | -10/Mines | Learned location of 1 exit from Materials 2571 | -10/Mines | Discovered new exit (range 7) 2799 | -10/Mines | Discovered new exit (range 6) 2814 | -10/Mines | Entered Subcaves 2815 | -10/Subcaves | Shifting Twisted Machinery released Sub. Monowheel 2830 | -10/Subcaves | Shifting Twisted Machinery released Scrap Shield 2931 | -10/Subcaves | Build established: Scavenger-Mutant 2932 | -10/Subcaves | Discovered new exit (range 16) 2979 | -10/Subcaves | Ambushed by swarm of Subdwellers 2981 | -10/Subcaves | Destroyed by 3B-13M(R) with Subdweller Laser Last Messages --------------- GOAL=ESCAPE Sub. Monowheel falls loose from the Twisted Machinery. 02815_ 7S-L8Q(h): "Hey you don't look like the usual menacing locals. I'm on point searching for advanced tech we've heard is being developed in secret down here, seen anything like that?" 02820_ 7S-L8Q(h) drops a Scrap Shield: "Protect yourself with this!" 02820_ Acquired derelict log, extracted data. Data stored: Storage entrances (x1). Scrap Shield falls loose from the Twisted Machinery. 02833_ Acquired Scrap Shield. 02850_ Acquired Sub. Monowheel. 02932_ EXIT=FOUND A mess of Twisted Machinery falls from the cavern ceiling. 1X-V27(R) comes tumbling into view. 02979_ 7S-L8Q(h): "The Subs are coming!" 02980_ HV Slug penetrates 1X-V27(R). 02980_ 1X-V27(R) suffers critical hit (Destroy). 02980_ 1X-V27(R) destroyed. 02980_ HV Slug penetrates Wall. 02981_ 3B-13M(R) emerges from the Twisted Machinery. Map ----- +----------------------------------------------------+ | ???????????# #?# # #????????????????? | | ???????????## ## ## #????????????????? | | ????????????##### ## #????????????????? | | ????????????????##"" "" #????????????????? | | ????????????????? "" "" "" ##???????????????? | | ???????????????? """ " """" #???????????????? | | ??????????????? """""" """" #???????????????? | | ?????????????? """ """" " ##???????????????? | | ?????????????""" """"" ##???????????????? | | ?????????????"? ?""?""" ##??????????????? | | ???????????????????? """ " #??????????????? | | ????????????????????? "" """ #??????????????? | | ???????????????????? "" " ##??????????????? | | ???????????????????? "" #???????????????? | | ???????????????????# "### ##??????????????? | | ???????????????????#######??# #??????????????? | | ????????????????????#???????# #??????????????? | | ????????????????????# #####?# #??????????????? | | ????????????????????#"#& #?## ##?????? ?? #??? | | ????????????????????#""R% #??#" ##??? #??? | | ????????????????????# *! ####" ## #???? | | ?????????????????????# ## #???????? | | ?????????????????????# ###???????? | | ?????????????????????## ## #????? | | ??????????????????????## #????? | | ???????????????????????# @ h < #????? | | ???????????????????????# ## #????? | | ??????????????????????# ##?# #????? | | ???????????????????? ## ###??? #???? | | ???????????????????# ########?????? #???? | | ???????????????????## #?????????????? ????? | | ????????????????????# ???????????????? ????? | | ????????????????????# ????????????????? ?????? | | ????????????????????####?????????????????????????? | | ?????????????????????????????????????????????????? | | ?????????????????????????????????????????????????? | | ?????????????????????????????????????????????????? | | ?????????????????????????????????????????????????? | | ?????????????????????????????????????????????????? | | ?????????????????????????????????????????????????? | | ?????????????????????????????????????????????????? | | ?????????????????????????????????????????????????? | | ?????????????????????????????????????????????????? | | ?????????????????????????????????????????????????? | | ?????????????????????????????????????????????????? | | ?????????????????????????????????????????????????? | | ?????????????????????????????????????????????????? | | ?????????????????????????????????????????????????? | | ?????????????????????????????????????????????????? | | ?????????????????????????????????????????????????? | +----------------------------------------------------+ Best States ------------- Heat Dissipation 25 Energy Generation 10 Energy Capacity 250 Matter Stores 318 Matter Capacity 500 Sight Range 16 Terrain Scan Range 16 Terrain Scan Density 10 Armor Coverage 150 Evasion (%) 55 Item Schematics ----------------- None Robot Schematics ------------------ None Fabricated ------------ Nothing Alien Tech Used ----------------- None Achievements -------------- None Challenges ------------ None Game ------ Seed MatterSalvageBroadsword Manual? 0 Play Time 00:40:02 Cumulative 1.2 hours Start 2024.07.21 @ 17:23:59 End 2024.07.21 @ 19:17:13 Sessions 1 Manual Loads 0 Difficulty Rogue Special Mode None Game No. 2 Rogue 2 Adventurer 0 Explorer 0 Win Type - Total 0 Types 0/0/0/0/0/0/0/0/0 Lore% 0 Gallery% 2 Achievement% 2 Wizard Run 0 Options --------- Layout 0 ASCII 0 Keyboard 1 Movement Numpad Keybinds 0 Fullscreen 2 Font 24/Smallcaps Map View 76x50 Zoom Use 0% Tactical HUD 1 Map Filters NONE Filters NONE Steam 1 RUN: c0be27d6-2441-426d-b94d-8077054c7e4d